[Event "African Championship"]
[Site "followchess.com"]
[Date "2021.05.21"]
[Round "4"]
[White "Kawuma, Patrick"]
[Black "Bellahcene, Bilel"]
[Result "1/2-1/2"]
[ECO "E11"]
[WhiteElo "2323"]
[BlackElo "2508"]
[PlyCount "113"]
[EventDate "2021.??.??"]
[TimeControl "7200+30"]
[WhiteClock "0:08:28"]
[BlackClock "0:05:17"]

1. d4 {[%emt 0:29:34]} Nf6 {[%emt 0:31:50]} 2. Nf3 {[%emt 0:00:32]} e6 {
[%emt 0:00:06]} 3. c4 {[%emt 0:00:17]} Bb4+ {[%emt 0:01:04]} 4. Bd2 {[%emt 0:
00:17]} Qe7 {[%emt 0:00:04]} 5. Qc2 {[%emt 0:01:25]} Bxd2+ {[%emt 0:02:49]} 6.
Nbxd2 {[%emt 0:00:26]} d6 {[%emt 0:00:14]} 7. g3 {[%emt 0:08:22]} e5 {[%emt 0:
01:21]} 8. e4 {[%emt 0:01:47]} exd4 {[%emt 0:08:22]} 9. Nxd4 {[%emt 0:00:21]}
c5 {[%emt 0:00:18]} 10. Ne2 {[%emt 0:03:14]} h5 {[%emt 0:03:21]} 11. h3 {
[%emt 0:05:31]} Nc6 {[%emt 0:01:29]} 12. Bg2 {[%emt 0:04:24]} Be6 {[%emt 0:04:
19]} 13. Qc3 {[%emt 0:03:42]} O-O-O {[%emt 0:08:24]} 14. O-O-O {[%emt 0:10:09]}
h4 {[%emt 0:03:34]} 15. f4 {[%emt 0:01:25]} Nb4 {[%emt 0:24:10]} 16. Qa3 {
[%emt 0:12:26]} Kb8 {[%emt 0:01:39]} 17. g4 {[%emt 0:04:36]} g5 {[%emt 0:00:26]
} 18. Kb1 {[%emt 0:05:14]} gxf4 {[%emt 0:01:15]} 19. Nxf4 {[%emt 0:00:10]} Nc6
{[%emt 0:03:15]} 20. Rhe1 {[%emt 0:04:00]} Ne5 {[%emt 0:02:37]} 21. Qc3 {
[%emt 0:00:39]} Nfd7 {[%emt 0:00:49]} 22. Bf1 {[%emt 0:04:27]} Nc6 {[%emt 0:05:
54]} 23. Ng2 {[%emt 0:00:08]} Qf6 {[%emt 0:02:42]} 24. Qxf6 {[%emt 0:02:26]}
Nxf6 {[%emt 0:00:03]} 25. Ne3 {[%emt 0:00:26]} Ne5 {[%emt 0:01:37]} 26. Be2 {
[%emt 0:01:36]} Kc7 {[%emt 0:05:56]} 27. Rf1 {[%emt 0:05:51]} Nfd7 {[%emt 0:01:
34]} 28. Kc2 {[%emt 0:08:28]} a6 {[%emt 0:01:17]} 29. Nd5+ {[%emt 0:03:17]} Kb8
{[%emt 0:01:56]} 30. Nf6 {[%emt 0:02:13]} Nf8 {[%emt 0:00:04]} 31. b3 {[%emt 0:
00:43]} Nfg6 {[%emt 0:00:12]} 32. Rf2 {[%emt 0:02:56]} Nc6 {[%emt 0:01:45]} 33.
Nf1 {[%emt 0:00:22]} Nge5 {[%emt 0:01:21]} 34. Ne3 {[%emt 0:00:31]} Nd4+ {
[%emt 0:00:02]} 35. Kd2 {[%emt 0:00:29]} b5 {[%emt 0:01:21]} 36. cxb5 {[%emt 0:
02:41]} axb5 {[%emt 0:00:06]} 37. Nc2 {[%emt 0:00:25]} Nxe2 {[%emt 0:04:48]}
38. Kxe2 {[%emt 0:01:40]} Kc7 {[%emt 0:02:58]} 39. Nd5+ {[%emt 0:01:04]} Kb7 {
[%emt 0:01:06]} 40. Nc3 {[%emt 0:00:00]} Kc6 {[%emt 0:00:00]} 41. Ne3 {[%emt 0:
00:00]} Ra8 {[%emt 0:00:00]} 42. Kf1 {[%emt 0:00:00]} Ra3 {[%emt 0:00:00]} 43.
Rfd2 {[%emt 0:00:00]} Rb8 {[%emt 0:00:00]} 44. Rxd6+ {[%emt 0:00:00]} Kc7 {
[%emt 0:00:00]} 45. Nf5 {[%emt 0:00:00]} b4 {[%emt 0:00:00]} 46. Nd5+ {[%emt 0:
00:00]} Kb7 {[%emt 0:00:00]} 47. Rc1 {[%emt 0:00:00]} c4 {[%emt 0:00:00]} 48.
Nxb4 {[%emt 0:00:00]} Ka7 {[%emt 0:00:00]} 49. Nc6+ {[%emt 0:00:00]} Nxc6 {
[%emt 0:00:00]} 50. Rxc6 {[%emt 0:00:00]} Rxa2 {[%emt 0:00:00]} 51. b4 {
[%emt 0:01:55]} Rb6 52. b5 Rxb5 {[%emt 0:01:02]} 53. Nd4 {[%emt 0:00:56]} Rbb2
{[%emt 0:02:09]} 54. Nxe6 {[%emt 0:00:08]} Rf2+ {[%emt 0:00:05]} 55. Kg1 {
[%emt 0:00:16]} Rg2+ {[%emt 0:00:04]} 56. Kh1 {[%emt 0:01:36]} Rh2+ {[%emt 0:
00:04]} 57. Kg1 {[%emt 0:00:08]} 1/2-1/2

[Event "African Championship"]
[Site "followchess.com"]
[Date "2021.05.21"]
[Round "4"]
[White "Mhango, Banele"]
[Black "Barrish, Daniel"]
[Result "1-0"]
[ECO "D02"]
[WhiteElo "2117"]
[BlackElo "2306"]
[PlyCount "169"]
[EventDate "2021.??.??"]
[TimeControl "7200+30"]
[WhiteClock "0:01:47"]
[BlackClock "0:15:05"]

1. d4 {[%emt 0:29:33]} Nf6 {[%emt 0:32:51]} 2. Nf3 {[%emt 0:00:36]} d5 {
[%emt 0:00:23]} 3. c4 {[%emt 0:01:00]} e6 {[%emt 0:00:18]} 4. g3 {[%emt 0:00:
23]} dxc4 {[%emt 0:00:35]} 5. Qa4+ {[%emt 0:02:24]} Nbd7 {[%emt 0:00:27]} 6.
Bg2 {[%emt 0:02:21]} a6 {[%emt 0:00:21]} 7. Qxc4 {[%emt 0:02:16]} b5 {[%emt 0:
00:36]} 8. Qc2 {[%emt 0:01:28]} Bb7 {[%emt 0:00:32]} 9. O-O {[%emt 0:00:09]} c5
{[%emt 0:00:54]} 10. a4 {[%emt 0:05:11]} b4 {[%emt 0:13:50]} 11. a5 {[%emt 0:
02:15]} Rc8 {[%emt 0:05:08]} 12. dxc5 {[%emt 0:06:55]} Bxc5 {[%emt 0:06:40]}
13. Qd3 {[%emt 0:03:36]} O-O {[%emt 0:10:58]} 14. Nbd2 {[%emt 0:01:48]} Qe7 {
[%emt 0:08:11]} 15. Ng5 {[%emt 0:11:49]} Ne5 {[%emt 0:05:00]} 16. Qb1 {[%emt 0:
03:40]} Bxg2 {[%emt 0:03:59]} 17. Kxg2 {[%emt 0:00:05]} h6 {[%emt 0:02:04]} 18.
Nge4 {[%emt 0:01:19]} Qb7 {[%emt 0:01:38]} 19. f3 {[%emt 0:00:06]} Nd5 {
[%emt 0:06:35]} 20. Nxc5 {[%emt 0:02:47]} Ne3+ {[%emt 0:03:12]} 21. Kf2 {
[%emt 0:04:12]} Qa7 {[%emt 0:17:13]} 22. Ndb3 {[%emt 0:01:00]} Nxf1 {[%emt 0:
02:38]} 23. Kxf1 {[%emt 0:00:05]} Nc4 {[%emt 0:02:26]} 24. Ne4 {[%emt 0:06:03]}
Rfd8 {[%emt 0:01:14]} 25. Nf2 {[%emt 0:02:34]} f5 {[%emt 0:01:58]} 26. Ra4 {
[%emt 0:02:31]} Rd5 {[%emt 0:01:40]} 27. Rxb4 {[%emt 0:01:53]} Qe7 {[%emt 0:00:
30]} 28. Rxc4 {[%emt 0:09:39]} Rxc4 {[%emt 0:00:06]} 29. Be3 {[%emt 0:01:23]}
Qb4 {[%emt 0:00:46]} 30. Nc1 {[%emt 0:01:54]} Qxa5 {[%emt 0:00:39]} 31. Ncd3 {
[%emt 0:01:02]} Qb5 {[%emt 0:00:55]} 32. Kg2 {[%emt 0:06:04]} Qb3 {[%emt 0:00:
33]} 33. Qd1 {[%emt 0:01:59]} Qxd1 {[%emt 0:00:30]} 34. Nxd1 {[%emt 0:00:05]}
Rc2 {[%emt 0:00:46]} 35. Kf1 {[%emt 0:00:20]} Rc8 {[%emt 0:00:32]} 36. Bd2 {
[%emt 0:00:41]} Kf7 {[%emt 0:00:37]} 37. Bc3 {[%emt 0:00:12]} g5 {[%emt 0:00:
26]} 38. Ne3 {[%emt 0:00:17]} Rb5 {[%emt 0:00:39]} 39. f4 {[%emt 0:00:17]} g4 {
[%emt 0:00:32]} 40. Ne5+ {[%emt 0:00:00]} Ke7 {[%emt 0:00:00]} 41. N5c4 {
[%emt 0:00:00]} Ra8 {[%emt 0:00:00]} 42. Nc2 {[%emt 0:00:00]} Rc8 {[%emt 0:00:
00]} 43. N2a3 {[%emt 0:00:00]} Rb3 {[%emt 0:00:00]} 44. Ke1 {[%emt 0:00:00]} h5
{[%emt 0:00:00]} 45. Kd2 {[%emt 0:00:00]} Rb7 {[%emt 0:00:00]} 46. Ne5 {
[%emt 0:00:00]} Kd6 {[%emt 0:00:00]} 47. Nac4+ {[%emt 0:00:00]} Kc5 {[%emt 0:
00:00]} 48. Ne3 {[%emt 0:00:00]} Rh7 {[%emt 0:00:00]} 49. Ng2 {[%emt 0:00:00]}
Kb5 {[%emt 0:00:00]} 50. Nd3 {[%emt 0:00:00]} a5 {[%emt 0:00:00]} 51. Nde1 {
[%emt 0:00:00]} Rd7+ {[%emt 0:00:00]} 52. Kc1 {[%emt 0:00:00]} a4 {[%emt 0:00:
00]} 53. Nc2 {[%emt 0:00:00]} Kc4 {[%emt 0:00:08]} 54. Na1 {[%emt 0:06:16]} a3
{[%emt 0:03:55]} 55. Kc2 {[%emt 0:00:04]} a2 {[%emt 0:01:36]} 56. Ne3+ {
[%emt 0:00:15]} Kb5 {[%emt 0:00:23]} 57. Kb3 {[%emt 0:00:08]} Ra8 {[%emt 0:00:
24]} 58. Kc2 {[%emt 0:00:48]} Rh7 {[%emt 0:00:48]} 59. Bf6 {[%emt 0:01:45]} Rf8
{[%emt 0:00:30]} 60. Bg5 {[%emt 0:04:20]} Rc7+ {[%emt 0:00:59]} 61. Kb3 {
[%emt 0:00:54]} Rc1 {[%emt 0:00:31]} 62. Nec2 {[%emt 0:00:04]} Rh1 {[%emt 0:02:
06]} 63. Kxa2 {[%emt 0:00:11]} Rxh2 {[%emt 0:00:28]} 64. Kb3 {[%emt 0:00:32]}
Ra8 {[%emt 0:00:38]} 65. Nd4+ {[%emt 0:00:07]} Kc5 {[%emt 0:00:31]} 66. Nac2 {
[%emt 0:00:18]} Kd5 {[%emt 0:00:30]} 67. Kc3 {[%emt 0:00:42]} Ke4 {[%emt 0:00:
15]} 68. Kd2 {[%emt 0:00:35]} Rb8 {[%emt 0:00:27]} 69. b4 {[%emt 0:00:26]} Rb7
{[%emt 0:00:51]} 70. Nxe6 {[%emt 0:00:41]} Rd7+ {[%emt 0:00:14]} 71. Kc3 {
[%emt 0:01:32]} Rh7 {[%emt 0:00:02]} 72. Nc5+ {[%emt 0:00:14]} Kd5 {[%emt 0:00:
26]} 73. Ne3+ {[%emt 0:00:06]} Kc6 {[%emt 0:00:21]} 74. Nxf5 {[%emt 0:00:05]}
Ra7 {[%emt 0:00:38]} 75. Nd4+ {[%emt 0:00:18]} Kb6 {[%emt 0:00:42]} 76. Bd8+ {
[%emt 0:00:08]} Rc7 {[%emt 0:01:45]} 77. Kd2 {[%emt 0:00:52]} h4 {[%emt 0:00:
00]} 78. gxh4 {[%emt 0:00:05]} g3 {[%emt 0:00:00]} 79. Nf3 {[%emt 0:00:30]} Rh1
{[%emt 0:00:00]} 80. Ne6 {[%emt 0:00:24]} g2 {[%emt 0:00:00]} 81. Bxc7+ {
[%emt 0:00:05]} Kc6 {[%emt 0:00:19]} 82. f5 {[%emt 0:00:13]} Rxh4 {[%emt 0:00:
57]} 83. Ke3 {[%emt 0:01:59]} Rxb4 {[%emt 0:00:35]} 84. Kf2 {[%emt 0:00:18]}
Re4 {[%emt 0:00:22]} 85. Bf4 {[%emt 0:00:38]} 1-0

[Event "African Championship"]
[Site "followchess.com"]
[Date "2021.05.21"]
[Round "4"]
[White "Nassr, Ali"]
[Black "Fawzy, Adham"]
[Result "1/2-1/2"]
[ECO "B22"]
[WhiteElo "2232"]
[BlackElo "2473"]
[PlyCount "95"]
[EventDate "2021.??.??"]
[TimeControl "7200+30"]
[WhiteClock "0:33:35"]
[BlackClock "0:29:13"]

1. e4 {[%emt 0:29:34]} c5 {[%emt 0:29:45]} 2. c3 {[%emt 0:00:10]} Nf6 {[%emt 0:
00:13]} 3. e5 {[%emt 0:00:16]} Nd5 {[%emt 0:00:06]} 4. Nf3 {[%emt 0:00:14]} Nc6
{[%emt 0:00:14]} 5. d4 {[%emt 0:00:23]} cxd4 {[%emt 0:00:05]} 6. cxd4 {[%emt 0:
00:13]} d6 {[%emt 0:00:05]} 7. Bc4 {[%emt 0:03:08]} dxe5 {[%emt 0:00:56]} 8.
dxe5 {[%emt 0:00:11]} Ndb4 {[%emt 0:00:25]} 9. O-O {[%emt 0:14:06]} Bf5 {
[%emt 0:11:16]} 10. Qb3 {[%emt 0:06:54]} e6 {[%emt 0:00:51]} 11. a3 {[%emt 0:
01:55]} Na5 {[%emt 0:01:33]} 12. Qa4+ {[%emt 0:06:18]} Nbc6 {[%emt 0:00:04]}
13. Ba2 {[%emt 0:01:27]} a6 {[%emt 0:02:51]} 14. Nc3 {[%emt 0:03:34]} b5 {
[%emt 0:02:33]} 15. Qf4 {[%emt 0:01:25]} b4 {[%emt 0:01:53]} 16. Ne4 {[%emt 0:
05:40]} Be7 {[%emt 0:07:13]} 17. axb4 {[%emt 0:06:23]} Nxb4 {[%emt 0:05:31]}
18. Bd2 {[%emt 0:02:10]} Nxa2 {[%emt 0:02:12]} 19. Rxa2 {[%emt 0:01:23]} Nc4 {
[%emt 0:04:16]} 20. Nf6+ {[%emt 0:07:40]} Kf8 {[%emt 0:14:31]} 21. Bc3 {
[%emt 0:10:11]} Nxe5 {[%emt 0:07:15]} 22. Nxh7+ {[%emt 0:02:17]} Rxh7 {[%emt 0:
00:03]} 23. Nxe5 {[%emt 0:00:31]} Qd5 {[%emt 0:09:12]} 24. Ra5 {[%emt 0:02:12]}
Qb7 {[%emt 0:05:22]} 25. Rd1 {[%emt 0:03:21]} Kg8 {[%emt 0:03:53]} 26. Rd7 {
[%emt 0:11:27]} Rd8 {[%emt 0:00:22]} 27. Qd2 {[%emt 0:00:28]} Rxd7 {[%emt 0:07:
22]} 28. Qxd7 {[%emt 0:00:04]} Qxd7 {[%emt 0:02:39]} 29. Nxd7 {[%emt 0:00:01]}
Bd3 {[%emt 0:00:04]} 30. g3 {[%emt 0:01:37]} Bb5 {[%emt 0:04:05]} 31. Nb8 {
[%emt 0:01:02]} Bd8 {[%emt 0:00:48]} 32. Ra1 {[%emt 0:00:13]} Bb6 {[%emt 0:00:
38]} 33. Nxa6 {[%emt 0:06:07]} Rh5 {[%emt 0:00:01]} 34. b4 {[%emt 0:00:19]} Rf5
{[%emt 0:00:11]} 35. Nc5 {[%emt 0:00:16]} Bxc5 {[%emt 0:00:07]} 36. bxc5 {
[%emt 0:00:07]} Rxc5 {[%emt 0:00:07]} 37. Bd4 {[%emt 0:00:43]} Rc2 {[%emt 0:00:
47]} 38. Be3 {[%emt 0:00:49]} Bd3 {[%emt 0:00:02]} 39. h4 {[%emt 0:00:31]} Be4
{[%emt 0:00:23]} 40. Rc1 {[%emt 0:00:00]} Ra2 {[%emt 0:00:00]} 41. Kh2 {
[%emt 0:00:00]} Bf3 {[%emt 0:00:00]} 42. Rc4 {[%emt 0:00:00]} Ra1 {[%emt 0:00:
00]} 43. g4 {[%emt 0:00:00]} Be2 {[%emt 0:00:00]} 44. Rc8+ {[%emt 0:00:00]} Kh7
{[%emt 0:00:00]} 45. Rc7 {[%emt 0:00:00]} f6 {[%emt 0:00:00]} 46. h5 {[%emt 0:
00:00]} Ra4 {[%emt 0:00:00]} 47. h6 {[%emt 0:00:00]} Rxg4 {[%emt 0:00:00]} 48.
Rxg7+ {[%emt 0:00:00]} 1/2-1/2

[Event "African Championship"]
[Site "followchess.com"]
[Date "2021.05.21"]
[Round "4"]
[White "Rakotomaharo, Fy Antenaina"]
[Black "Oragwu, Chukwunonso"]
[Result "1-0"]
[ECO "A56"]
[WhiteElo "2429"]
[BlackElo "2241"]
[PlyCount "65"]
[EventDate "2021.??.??"]
[TimeControl "7200+30"]
[WhiteClock "0:00:33"]
[BlackClock "0:16:03"]

1. d4 {[%emt 0:33:05]} Nf6 {[%emt 0:33:42]} 2. c4 {[%emt 0:00:05]} c5 {[%emt 0:
00:48]} 3. d5 {[%emt 0:00:10]} d6 {[%emt 0:00:11]} 4. Nc3 {[%emt 0:00:06]} g6 {
[%emt 0:00:05]} 5. e4 {[%emt 0:02:54]} Bg7 {[%emt 0:00:16]} 6. h3 {[%emt 0:00:
03]} O-O {[%emt 0:00:33]} 7. Nf3 {[%emt 0:00:06]} e6 {[%emt 0:01:02]} 8. Bd3 {
[%emt 0:00:05]} Na6 {[%emt 0:02:33]} 9. O-O {[%emt 0:00:17]} Nc7 {[%emt 0:01:
48]} 10. Re1 {[%emt 0:03:15]} e5 {[%emt 0:11:45]} 11. Rb1 {[%emt 0:18:36]} Nfe8
{[%emt 0:03:03]} 12. Bg5 {[%emt 0:01:31]} f6 {[%emt 0:06:30]} 13. Bh4 {[%emt 0:
00:15]} h5 {[%emt 0:04:12]} 14. a3 {[%emt 0:04:42]} Bh6 {[%emt 0:02:09]} 15. b4
{[%emt 0:00:55]} Na6 {[%emt 0:02:56]} 16. Na4 {[%emt 0:08:12]} Bd7 {[%emt 0:08:
01]} 17. b5 {[%emt 0:01:22]} Nb8 {[%emt 0:00:46]} 18. Nxc5 {[%emt 0:00:17]}
dxc5 {[%emt 0:00:59]} 19. Nxe5 {[%emt 0:00:05]} g5 {[%emt 0:11:44]} 20. Ng6 {
[%emt 0:02:27]} gxh4 {[%emt 0:13:00]} 21. Qxh5 {[%emt 0:00:17]} Bg7 {[%emt 0:
07:19]} 22. Nxf8 {[%emt 0:15:11]} Kxf8 {[%emt 0:00:53]} 23. f4 {[%emt 0:00:02]}
Nd6 {[%emt 0:08:31]} 24. e5 {[%emt 0:00:44]} Be8 {[%emt 0:02:37]} 25. Qxh4 {
[%emt 0:03:17]} Nc8 {[%emt 0:00:52]} 26. Re2 {[%emt 0:07:33]} Nd7 {[%emt 0:01:
19]} 27. Rbe1 {[%emt 0:00:34]} Qb6 {[%emt 0:04:12]} 28. e6 {[%emt 0:09:32]} f5
{[%emt 0:01:18]} 29. Bxf5 {[%emt 0:04:02]} Nf6 {[%emt 0:00:53]} 30. e7+ {
[%emt 0:00:19]} Kg8 {[%emt 0:00:28]} 31. Be6+ {[%emt 0:00:15]} Bf7 {[%emt 0:00:
07]} 32. Qxf6 {[%emt 0:00:08]} Qxe6 {[%emt 0:00:55]} 33. dxe6 {[%emt 0:00:05]}
1-0

[Event "African Championship"]
[Site "followchess.com"]
[Date "2021.05.23"]
[Round "5"]
[White "Amin, Bassem"]
[Black "Mhango, Banele"]
[Result "1-0"]
[ECO "B22"]
[WhiteElo "2701"]
[BlackElo "2117"]
[PlyCount "121"]
[EventDate "2021.??.??"]
[TimeControl "7200+30"]
[WhiteClock "0:22:58"]
[BlackClock "0:01:59"]

1. e4 {[%emt 0:30:50]} c5 {[%emt 0:29:34]} 2. c3 {[%emt 0:00:25]} Nf6 {[%emt 0:
03:51]} 3. e5 {[%emt 0:02:31]} Nd5 {[%emt 0:00:11]} 4. Nf3 {[%emt 0:00:16]} Nc6
{[%emt 0:01:56]} 5. d4 {[%emt 0:00:34]} cxd4 {[%emt 0:01:01]} 6. Bc4 {[%emt 0:
00:07]} e6 {[%emt 0:01:59]} 7. O-O {[%emt 0:01:07]} Be7 {[%emt 0:06:30]} 8.
cxd4 {[%emt 0:00:17]} d6 {[%emt 0:00:36]} 9. Qe2 {[%emt 0:00:23]} O-O {[%emt 0:
07:28]} 10. Qe4 {[%emt 0:00:43]} Ndb4 {[%emt 0:01:30]} 11. exd6 {[%emt 0:00:08]
} Qxd6 {[%emt 0:00:15]} 12. Nc3 {[%emt 0:00:29]} Na5 {[%emt 0:02:01]} 13. Bf4 {
[%emt 0:01:07]} Qc6 {[%emt 0:00:42]} 14. Qxc6 {[%emt 0:00:37]} bxc6 {[%emt 0:
05:02]} 15. Be2 {[%emt 0:01:48]} Ba6 {[%emt 0:05:25]} 16. Bxa6 {[%emt 0:01:36]}
Nxa6 {[%emt 0:00:05]} 17. a3 {[%emt 0:03:58]} Nb3 {[%emt 0:02:35]} 18. Rad1 {
[%emt 0:00:55]} Rfd8 {[%emt 0:00:29]} 19. Rfe1 {[%emt 0:02:08]} Bf6 {[%emt 0:
01:15]} 20. Ne4 {[%emt 0:07:21]} c5 {[%emt 0:03:00]} 21. Nxf6+ gxf6 {[%emt 0:
00:07]} 22. Be3 {[%emt 0:15:35]} c4 {[%emt 0:11:51]} 23. Nd2 {[%emt 0:00:59]}
Nxd2 {[%emt 0:01:55]} 24. Rxd2 {[%emt 0:02:21]} Rd7 {[%emt 0:07:41]} 25. Rc1 {
[%emt 0:00:56]} Rc8 {[%emt 0:00:23]} 26. Rc3 {[%emt 0:17:54]} Rb7 {[%emt 0:00:
46]} 27. b4 {[%emt 0:00:54]} Kf8 {[%emt 0:05:56]} 28. Rdc2 {[%emt 0:00:49]} Ke7
{[%emt 0:02:09]} 29. Kf1 {[%emt 0:05:11]} Kd6 {[%emt 0:01:44]} 30. Rxc4 {
[%emt 0:00:02]} Rxc4 {[%emt 0:00:10]} 31. Rxc4 {[%emt 0:00:01]} Kd5 {[%emt 0:
00:37]} 32. Rc8 {[%emt 0:00:48]} Nc7 {[%emt 0:02:16]} 33. Ke2 {[%emt 0:01:27]}
Kd6 {[%emt 0:09:12]} 34. Kd3 {[%emt 0:02:37]} Nd5 {[%emt 0:00:07]} 35. Bd2 {
[%emt 0:15:20]} a5 {[%emt 0:03:49]} 36. bxa5 {[%emt 0:00:34]} Rb3+ {[%emt 0:00:
04]} 37. Kc2 {[%emt 0:07:26]} Rxa3 {[%emt 0:00:15]} 38. Rh8 {[%emt 0:01:11]}
Ra2+ {[%emt 0:01:02]} 39. Kd3 {[%emt 0:06:01]} e5 {[%emt 0:00:05]} 40. dxe5+ {
[%emt 0:00:00]} fxe5 {[%emt 0:00:00]} 41. Rd8+ {[%emt 0:00:00]} Kc6 {[%emt 0:
00:00]} 42. Re8 {[%emt 0:00:00]} Kd6 {[%emt 0:00:00]} 43. g4 {[%emt 0:00:00]}
Ra4 {[%emt 0:00:00]} 44. g5 {[%emt 0:00:00]} Rh4 {[%emt 0:00:00]} 45. Rd8+ {
[%emt 0:00:00]} Ke6 {[%emt 0:00:00]} 46. Rc8 {[%emt 0:00:00]} Ra4 {[%emt 0:00:
00]} 47. Rc6+ {[%emt 0:00:00]} Kf5 {[%emt 0:00:00]} 48. f3 {[%emt 0:00:00]}
Nf4+ {[%emt 0:00:00]} 49. Bxf4 {[%emt 0:00:29]} exf4 {[%emt 0:00:00]} 50. Rc5+
{[%emt 0:05:25]} Kg6 {[%emt 0:00:00]} 51. Kc3 {[%emt 0:00:59]} Ra3+ {[%emt 0:
00:00]} 52. Kb4 {[%emt 0:00:32]} Rxf3 {[%emt 0:00:00]} 53. a6 {[%emt 0:00:06]}
Rf1 {[%emt 0:00:00]} 54. Ra5 {[%emt 0:01:02]} f3 {[%emt 0:00:00]} 55. a7 {
[%emt 0:00:11]} f2 {[%emt 0:00:00]} 56. a8=Q {[%emt 0:00:32]} Rb1+ {[%emt 0:00:
00]} 57. Kc3 {[%emt 0:00:24]} f1=Q {[%emt 0:00:00]} 58. Qc6+ {[%emt 0:01:17]}
Kh5 {[%emt 0:00:56]} 59. Qh6+ {[%emt 0:00:02]} Kg4 {[%emt 0:00:10]} 60. Ra4+ {
[%emt 0:00:03]} Kf3 {[%emt 0:00:22]} 61. Qc6+ {[%emt 0:00:03]} 1-0

[Event "African Championship"]
[Site "followchess.com"]
[Date "2021.05.23"]
[Round "5"]
[White "Bellahcene, Bilel"]
[Black "Nassr, Ali"]
[Result "1-0"]
[ECO "B45"]
[WhiteElo "2508"]
[BlackElo "2232"]
[PlyCount "69"]
[EventDate "2021.??.??"]
[TimeControl "7200+30"]
[WhiteClock "0:26:13"]
[BlackClock "0:56:56"]

1. e4 {[%emt 0:32:18]} c5 {[%emt 0:29:37]} 2. Nf3 {[%emt 0:00:04]} e6 {[%emt 0:
00:09]} 3. d4 {[%emt 0:00:03]} cxd4 {[%emt 0:00:11]} 4. Nxd4 {[%emt 0:00:03]}
Nc6 {[%emt 0:00:13]} 5. Nc3 {[%emt 0:00:05]} Nf6 {[%emt 0:00:07]} 6. Ndb5 {
[%emt 0:00:10]} Bc5 {[%emt 0:00:17]} 7. Bf4 {[%emt 0:00:05]} O-O {[%emt 0:00:
23]} 8. Bc7 {[%emt 0:00:03]} Qe7 {[%emt 0:00:09]} 9. Bd6 {[%emt 0:00:03]} Bxd6
{[%emt 0:00:07]} 10. Qxd6 {[%emt 0:00:03]} Ne8 {[%emt 0:00:08]} 11. Qxe7 {
[%emt 0:00:05]} Nxe7 {[%emt 0:00:05]} 12. O-O-O {[%emt 0:00:03]} f5 {[%emt 0:
00:28]} 13. e5 {[%emt 0:00:07]} Ng6 {[%emt 0:00:33]} 14. Re1 {[%emt 0:00:04]}
a6 {[%emt 0:00:32]} 15. Nd4 {[%emt 0:00:03]} b5 {[%emt 0:10:08]} 16. a4 {
[%emt 0:00:04]} b4 {[%emt 0:00:44]} 17. Nb1 {[%emt 0:00:04]} d5 {[%emt 0:11:10]
} 18. Nd2 {[%emt 0:16:48]} Rf7 {[%emt 0:06:51]} 19. h4 {[%emt 0:01:40]} Rc7 {
[%emt 0:04:21]} 20. h5 {[%emt 0:00:05]} Nf8 {[%emt 0:01:37]} 21. b3 {[%emt 0:
03:57]} a5 {[%emt 0:02:42]} 22. g3 {[%emt 0:05:29]} Ba6 {[%emt 0:00:56]} 23.
Bh3 {[%emt 0:00:04]} g5 {[%emt 0:22:47]} 24. hxg6 {[%emt 0:01:01]} hxg6 {
[%emt 0:00:06]} 25. N2f3 {[%emt 0:01:08]} Bd3 {[%emt 0:01:58]} 26. Ng5 {
[%emt 0:05:45]} Rac8 {[%emt 0:10:07]} 27. Kd2 {[%emt 0:00:34]} Be4 {[%emt 0:01:
56]} 28. f3 {[%emt 0:01:44]} Rxc2+ {[%emt 0:00:37]} 29. Nxc2 {[%emt 0:00:09]}
Rxc2+ {[%emt 0:00:05]} 30. Kd1 {[%emt 0:00:13]} Bd3 {[%emt 0:00:36]} 31. Bf1 {
[%emt 0:01:31]} Rc3 {[%emt 0:00:19]} 32. Bxd3 {[%emt 0:00:19]} Rxd3+ {[%emt 0:
00:05]} 33. Kc2 {[%emt 0:00:02]} Rc3+ {[%emt 0:00:10]} 34. Kb2 {[%emt 0:00:02]}
Nc7 {[%emt 0:00:33]} 35. Rc1 {[%emt 0:06:36]} 1-0

[Event "African Championship"]
[Site "followchess.com"]
[Date "2021.05.23"]
[Round "5"]
[White "Bwalya, Gillan"]
[Black "Mwale, Joseph"]
[Result "0-1"]
[ECO "E30"]
[WhiteElo "2405"]
[BlackElo "2148"]
[PlyCount "130"]
[EventDate "2021.??.??"]
[TimeControl "7200+30"]
[WhiteClock "0:15:27"]
[BlackClock "0:04:54"]

1. d4 {[%emt 0:31:56]} Nf6 {[%emt 0:29:43]} 2. c4 {[%emt 0:01:54]} e6 {[%emt 0:
00:12]} 3. Nc3 {[%emt 0:01:21]} Bb4 {[%emt 0:00:12]} 4. Bg5 {[%emt 0:02:33]} c5
{[%emt 0:01:08]} 5. d5 {[%emt 0:05:08]} d6 {[%emt 0:00:43]} 6. e3 {[%emt 0:05:
42]} h6 {[%emt 0:03:32]} 7. Bh4 {[%emt 0:00:35]} g5 {[%emt 0:03:30]} 8. Bg3 {
[%emt 0:00:15]} exd5 {[%emt 0:03:41]} 9. cxd5 {[%emt 0:02:04]} h5 {[%emt 0:00:
12]} 10. h4 {[%emt 0:04:57]} Ne4 {[%emt 0:02:22]} 11. Nge2 {[%emt 0:00:39]} Qa5
{[%emt 0:04:15]} 12. Qc1 {[%emt 0:15:28]} c4 {[%emt 0:16:42]} 13. a3 {[%emt 0:
00:34]} Bxc3+ {[%emt 0:04:48]} 14. Nxc3 {[%emt 0:00:09]} Nxg3 {[%emt 0:00:52]}
15. fxg3 {[%emt 0:00:06]} Nd7 {[%emt 0:06:59]} 16. Bxc4 {[%emt 0:01:25]} Ne5 {
[%emt 0:00:03]} 17. Be2 {[%emt 0:01:26]} Bg4 {[%emt 0:02:15]} 18. O-O {[%emt 0:
07:26]} Bxe2 {[%emt 0:02:33]} 19. Nxe2 {[%emt 0:00:08]} gxh4 {[%emt 0:00:17]}
20. gxh4 {[%emt 0:02:49]} Qxd5 {[%emt 0:03:25]} 21. Nc3 {[%emt 0:03:33]} Qc6 {
[%emt 0:06:23]} 22. Qd2 {[%emt 0:00:40]} O-O-O {[%emt 0:01:32]} 23. Nd5 {
[%emt 0:00:10]} Kb8 {[%emt 0:00:20]} 24. Rac1 {[%emt 0:00:47]} Qb5 {[%emt 0:00:
59]} 25. Nf6 {[%emt 0:02:34]} a6 {[%emt 0:09:54]} 26. Rf4 {[%emt 0:03:06]} Qd3
{[%emt 0:14:01]} 27. Rd1 {[%emt 0:02:23]} Qxd2 {[%emt 0:02:47]} 28. Rxd2 {
[%emt 0:00:36]} Rc8 {[%emt 0:00:38]} 29. Rd3 d5 30. Rxd5 {[%emt 0:01:36]} Rc1+
{[%emt 0:01:24]} 31. Kh2 {[%emt 0:08:58]} Nc4 {[%emt 0:00:58]} 32. Rd3 {
[%emt 0:05:11]} Nxb2 {[%emt 0:00:09]} 33. Rb3 {[%emt 0:00:08]} Nc4 {[%emt 0:01:
01]} 34. Nd7+ {[%emt 0:00:18]} Ka7 {[%emt 0:00:38]} 35. Rxf7 {[%emt 0:00:19]}
Nd2 {[%emt 0:00:19]} 36. Rb4 {[%emt 0:05:25]} Nf1+ {[%emt 0:00:05]} 37. Kh3 {
[%emt 0:00:13]} Nxe3 {[%emt 0:00:19]} 38. Nf6 {[%emt 0:02:31]} Rh1+ {[%emt 0:
02:08]} 39. Kg3 {[%emt 0:00:12]} Nf5+ {[%emt 0:00:02]} 40. Kf2 {[%emt 0:00:47]}
Nd6 {[%emt 0:00:02]} 41. Rd7 {[%emt 0:00:00]} Nb5 {[%emt 0:00:00]} 42. g3 {
[%emt 0:00:00]} Rf8 {[%emt 0:00:00]} 43. Kg2 {[%emt 0:00:00]} Ra1 {[%emt 0:00:
00]} 44. Nxh5 {[%emt 0:00:00]} Rxa3 {[%emt 0:00:00]} 45. Rf4 {[%emt 0:00:00]}
Rh8 {[%emt 0:00:00]} 46. Nf6 {[%emt 0:00:00]} Rb3 {[%emt 0:00:00]} 47. h5 {
[%emt 0:00:00]} Nc3 {[%emt 0:00:00]} 48. Rf5 {[%emt 0:00:00]} Rb4 {[%emt 0:00:
00]} 49. g4 {[%emt 0:00:00]} Ne4 {[%emt 0:00:00]} 50. g5 {[%emt 0:00:00]} Rf8 {
[%emt 0:00:00]} 51. Rg7 {[%emt 0:10:11]} Rb6 {[%emt 0:00:00]} 52. Nxe4 {
[%emt 0:00:23]} Rxf5 {[%emt 0:00:00]} 53. Kg3 {[%emt 0:03:41]} Rb3+ {[%emt 0:
00:31]} 54. Kg4 {[%emt 0:00:07]} Rbf3 {[%emt 0:00:10]} 55. Ng3 {[%emt 0:02:18]}
R5f4+ {[%emt 0:01:12]} 56. Kh3 {[%emt 0:00:05]} Ra4 {[%emt 0:00:19]} 57. Kg2 {
[%emt 0:00:08]} Rb3 {[%emt 0:00:49]} 58. Nf1 {[%emt 0:03:30]} Rg4+ {[%emt 0:00:
36]} 59. Kf2 {[%emt 0:00:24]} Rf4+ {[%emt 0:00:23]} 60. Ke2 {[%emt 0:00:04]}
Rb2+ {[%emt 0:00:15]} 61. Nd2 {[%emt 0:00:12]} Rd4 {[%emt 0:00:09]} 62. h6 {
[%emt 0:00:06]} Rbxd2+ {[%emt 0:00:11]} 63. Kf3 {[%emt 0:00:06]} R2d3+ {
[%emt 0:00:14]} 64. Ke2 {[%emt 0:00:12]} Rh3 {[%emt 0:00:08]} 65. h7 {[%emt 0:
00:07]} Ra4 {[%emt 0:01:03]} 0-1